fUST/lending_fUST_20251002
["ID","MTS","AMOUNT","RATE_DAILY","PERIOD"]
[388757809,1759349459835,-500.0,0.00020821,2]
[388757810,1759349459844,-500.0,0.00020821,2]
[388757811,1759349459853,-500.0,0.00020821,2]
[388757812,1759349459862,-500.0,0.00020821,2]
[388757813,1759349459872,-500.0,0.00020821,2]
[388757814,1759349459881,-523.64,0.00020821,2]
[388757815,1759349459891,-500.0,0.00020821,2]
[388757816,1759349459900,-500.0,0.00020821,2]
[388757817,1759349459909,-500.0,0.00020821,2]
[388757818,1759349459918,-500.0,0.00020821,2]
[388757819,1759349459927,-500.0,0.00020821,2]
[388757820,1759349459937,-1738.76,0.00020821,2]
[388757821,1759349459947,-1224.23,0.00020821,2]
[388757822,1759349459956,-500.0,0.00020821,2]
[388757823,1759349459965,-500.0,0.00020821,2]
[388757824,1759349459975,-500.0,0.00020821,2]
[388757825,1759349459984,-648.84,0.00020821,2]
[388757826,1759349459993,-500.0,0.00020821,2]
[388757827,1759349460002,-500.0,0.00020821,2]
[388757828,1759349460011,-500.0,0.00020821,2]
[388757829,1759349460020,-380.0,0.00020821,2]
[388757830,1759349460030,-500.0,0.00020821,2]
[388757831,1759349460040,-2216.26,0.00020821,2]
[388757832,1759349460049,-500.0,0.00020821,2]
[388757833,1759349460059,-671.6,0.00020821,2]
[388757834,1759349460068,-847.38,0.00020821,2]
[388757835,1759349460078,-500.0,0.00020821,2]
[388757836,1759349460163,-525.8063914,0.00020821,2]
[388757837,1759349460172,-500.0,0.00020821,2]
[388757838,1759349460182,-580.17,0.00020821,2]
[388757839,1759349460191,-500.0,0.00020821,2]
[388757840,1759349460200,-500.0,0.00020821,2]
[388757841,1759349460210,-533.7,0.00020821,2]
[388757842,1759349460220,-669.61,0.00020821,2]
[388757843,1759349460229,-500.0,0.00020821,2]
[388757844,1759349460239,-500.0,0.00020821,2]
[388757845,1759349460248,-500.0,0.00020821,2]
[388757846,1759349460257,-500.0,0.00020821,2]
[388757847,1759349460266,-779.18,0.00020821,2]
[388757848,1759349460275,-1045.3,0.00020821,2]
[388757849,1759349460284,-500.0,0.00020821,2]
[388757850,1759349460293,-500.0,0.00020821,2]
[388757851,1759349460302,-500.0,0.00020821,2]
[388757852,1759349460311,-500.0,0.00020821,2]
[388757853,1759349460321,-500.0,0.00020821,2]
[388757854,1759349460331,-500.0,0.00020821,2]
[388757855,1759349460340,-500.0,0.00020821,2]
[388757856,1759349460349,-749.78,0.00020821,2]
[388757857,1759349460359,-500.0,0.00020821,2]
[388757858,1759349460369,-500.0,0.00020821,2]
[388757859,1759349460379,-500.0,0.00020821,2]
[388757860,1759349460388,-500.0,0.00020821,2]
[388757861,1759349460398,-500.0,0.00020821,2]
[388757862,1759349460407,-1097.5,0.00020821,2]
[388757863,1759349460417,-758.92,0.00020821,2]
[388757864,1759349460426,-956.95,0.00020821,2]
[388757865,1759349460436,-2130.73,0.00020821,2]
[388757866,1759349460445,-500.0,0.00020821,2]
[388757867,1759349460455,-1279.97,0.00020821,2]
[388757868,1759349460464,-500.0,0.00020821,2]
[388757869,1759349460473,-500.0,0.00020821,2]
[388757870,1759349460483,-913.19,0.00020821,2]
[388757871,1759349460493,-2174.11,0.00020821,2]
[388757872,1759349460502,-1500.0,0.00020868,2]
[388757873,1759349460511,-798.5814752,0.00020868,2]
[388757874,1759349460520,-1500.0,0.00020868,2]
[388757875,1759349460530,-1500.0,0.00020868,2]
[388757876,1759349460539,-1500.0,0.00020868,2]
[388757877,1759349460548,-1500.0,0.00020868,2]
[388757878,1759349460557,-1500.0,0.00020868,2]
[388757879,1759349460567,-1500.0,0.00020868,2]
[388757880,1759349460576,-500.0,0.00020948,2]
[388757881,1759349460586,-1435.33123807,0.00020957,2]
[388757882,1759349460595,-903.4943865,0.00021014,2]
[388757883,1759349460604,-376.44418485,0.00021068,2]
[388757884,1759349460613,-500.0,0.00021068,2]
[388757885,1759349460623,-500.0,0.00021068,2]
[388757886,1759349460633,-1500.0,0.00021068,2]
[388757887,1759349460642,-702.87362549,0.00021068,2]
[388757888,1759349460651,-500.0,0.00021068,2]
[388757889,1759349460660,-273.33965458,0.00021068,2]
[388757890,1759349460669,-1500.0,0.00021068,2]
[388757891,1759349460679,-977.2590813,0.00021068,2]
[388757892,1759349460688,-1505.65428877,0.00021068,2]
[388757893,1759349460697,-155.0,0.00021095,2]
[388757894,1759349460706,-500.0,0.00021095,2]
[388757895,1759349460716,-500.0,0.00021095,2]
[388757896,1759349460729,-734.36,0.00021095,2]
[388757897,1759349460738,-624.11833337,0.00021095,2]
[388757898,1759349460747,-204.23926195,0.00021095,2]
[388757899,1759349460756,-500.0,0.00021095,2]
[388757900,1759349460768,-500.0,0.00021095,2]
[388757901,1759349460777,-319.51144712,0.00021095,2]
[388757902,1759349460787,-500.0,0.00021095,2]
[388757903,1759349460798,-500.0,0.00021095,2]
[388757904,1759349460807,-500.0,0.00021095,2]
[388757905,1759349460815,-500.0,0.00021095,2]
[388757906,1759349460825,-500.0,0.00021095,2]
[388757907,1759349460833,-500.0,0.00021095,2]
[388757908,1759349460843,-500.0,0.00021095,2]
[388757909,1759349460852,-500.0,0.00021095,2]
[388757910,1759349460861,-500.0,0.00021095,2]
[388757911,1759349460870,-500.0,0.00021095,2]
[388757912,1759349460879,-244.25,0.00021095,2]
[388757913,1759349460888,-500.0,0.00021095,2]
[388757914,1759349460897,-646.96,0.00021095,2]
[388757915,1759349460906,-500.0,0.00021095,2]
[388757916,1759349460915,-500.0,0.00021095,2]
[388757917,1759349460924,-500.0,0.00021095,2]
[388757918,1759349460934,-500.0,0.00021095,2]
[388757919,1759349460943,-500.0,0.00021095,2]
[388757920,1759349460951,-500.0,0.00021095,2]
[388757921,1759349460961,-716.33,0.00021095,2]
[388757922,1759349460970,-837.42,0.00021095,2]
[388757923,1759349460979,-500.0,0.00021095,2]
[388757924,1759349460988,-500.0,0.00021095,2]
[388757925,1759349460997,-500.0,0.00021095,2]
[388757926,1759349461006,-500.0,0.00021095,2]
[388757927,1759349461015,-500.0,0.00021095,2]
[388757928,1759349461024,-500.0,0.00021095,2]
[388757929,1759349461033,-500.0,0.00021095,2]
[388757930,1759349461042,-500.0,0.00021095,2]
[388757931,1759349461051,-500.0,0.00021095,2]
[388757932,1759349461060,-572.67,0.00021095,2]
[388757933,1759349461069,-500.0,0.00021095,2]
[388757934,1759349461078,-500.0,0.00021095,2]
[388757935,1759349461087,-764.98,0.00021095,2]
[388757936,1759349461097,-500.0,0.00021095,2]
[388757937,1759349461105,-500.0,0.00021095,2]
[388757938,1759349461114,-500.0,0.00021095,2]
[388757939,1759349461124,-500.0,0.00021095,2]
[388757940,1759349461133,-500.0,0.00021095,2]
[388757941,1759349461142,-500.0,0.00021095,2]
[388757942,1759349461151,-500.0,0.00021095,2]
[388757943,1759349461160,-285.63,0.00021095,2]
[388757944,1759349461170,-500.0,0.00021095,2]
[388757945,1759349461179,-500.0,0.00021095,2]
[388757946,1759349461188,-500.0,0.00021095,2]
[388757947,1759349461197,-500.0,0.00021095,2]
[388757948,1759349461207,-500.0,0.00021095,2]
[388757949,1759349461216,-500.0,0.00021095,2]
[388757950,1759349461225,-500.0,0.00021095,2]
[388757951,1759349461234,-1549.08,0.00021095,2]
[388757952,1759349461243,-983.42,0.00021095,2]
[388757953,1759349461252,-500.0,0.00021095,2]
[388757954,1759349461261,-500.0,0.00021095,2]
[388757955,1759349461271,-500.0,0.00021095,2]
[388757956,1759349461280,-500.0,0.00021095,2]
[388757957,1759349461289,-500.0,0.00021095,2]
[388757958,1759349461298,-500.0,0.00021095,2]
[388757959,1759349461307,-365.95,0.00021095,2]
[388757960,1759349461316,-1141.6,0.00021095,2]
[388757961,1759349461325,-500.0,0.00021095,2]
[388757962,1759349461335,-528.75,0.00021095,2]
[388757963,1759349461344,-500.0,0.00021095,2]
[388757964,1759349461353,-500.0,0.00021095,2]
[388757965,1759349461362,-320.0,0.00021095,2]
[388757966,1759349461372,-500.0,0.00021095,2]
[388757967,1759349461381,-3901.58,0.00021095,2]
[388757968,1759349461391,-500.0,0.00021095,2]
[388757969,1759349461468,-799.4,0.00021095,2]
[388757970,1759349461484,-956.64,0.00021095,2]
[388757971,1759349461494,-500.0,0.00021095,2]
[388757972,1759349461503,-500.0,0.00021095,2]
[388757973,1759349461513,-500.0,0.00021095,2]
[388757974,1759349461523,-5454.05,0.00021095,2]
[388757975,1759349461532,-500.0,0.00021095,2]
[388757976,1759349461541,-500.0,0.00021095,2]
[388757977,1759349461551,-500.0,0.00021095,2]
[388757978,1759349461560,-500.0,0.00021095,2]
[388757979,1759349461570,-500.0,0.00021095,2]
[388757980,1759349461579,-500.0,0.00021095,2]
[388757981,1759349461589,-500.0,0.00021095,2]
[388757982,1759349461599,-380.0,0.00021095,2]
[388757983,1759349461608,-500.0,0.00021095,2]
[388757984,1759349461618,-485.99,0.00021095,2]
[388757985,1759349461627,-529.92,0.00021095,2]
[388757986,1759349461637,-893.64,0.00021095,2]
[388757987,1759349461646,-500.0,0.00021095,2]
[388757988,1759349461655,-500.0,0.00021095,2]
[388757989,1759349461664,-500.0,0.00021095,2]
[388757990,1759349461673,-500.0,0.00021095,2]
[388757991,1759349461683,-500.0,0.00021095,2]
[388757992,1759349461692,-500.0,0.00021095,2]
[388757993,1759349461701,-523.64,0.00021095,2]
[388757994,1759349461711,-500.0,0.00021095,2]
[388757995,1759349461726,-500.0,0.00021095,2]
[388757996,1759349461736,-500.0,0.00021095,2]
[388757997,1759349461745,-500.0,0.00021095,2]
[388757998,1759349461755,-500.0,0.00021095,2]
[388757999,1759349461765,-1738.76,0.00021095,2]
[388758000,1759349461774,-1224.23,0.00021095,2]
[388758001,1759349461783,-500.0,0.00021095,2]
[388758002,1759349461792,-500.0,0.00021095,2]
[388758003,1759349461802,-500.0,0.00021095,2]
[388758004,1759349461811,-648.84,0.00021095,2]
[388758005,1759349461820,-500.0,0.00021095,2]
[388758006,1759349461829,-500.0,0.00021095,2]
[388758007,1759349461838,-500.0,0.00021095,2]
[388758008,1759349461847,-244.10171012,0.00021095,2]
[388758009,1759349461856,-2216.26,0.00021095,2]
[388758010,1759349461865,-500.0,0.00021095,2]
[388758011,1759349461875,-671.6,0.00021095,2]
[388758012,1759349461891,-847.38,0.00021095,2]
[388758013,1759349461904,-500.0,0.00021095,2]
[388758014,1759349461913,-500.0,0.00021095,2]
[388758015,1759349461925,-580.17,0.00021095,2]
[388758016,1759349461939,-500.0,0.00021095,2]
[388758017,1759349461948,-500.0,0.00021095,2]
[388758018,1759349461958,-669.61,0.00021095,2]
[388758019,1759349461967,-500.0,0.00021095,2]
[388758020,1759349461976,-500.0,0.00021095,2]
[388758021,1759349461985,-500.0,0.00021095,2]
[388758022,1759349461994,-500.0,0.00021095,2]
[388758023,1759349462003,-779.18,0.00021095,2]
[388758024,1759349462012,-1045.3,0.00021095,2]
[388758025,1759349462021,-500.0,0.00021095,2]
[388758026,1759349462030,-500.0,0.00021095,2]
[388758027,1759349462039,-575.37,0.00021095,2]
[388758028,1759349462047,-500.0,0.00021095,2]
[388758029,1759349462056,-500.0,0.00021095,2]
[388758030,1759349462065,-500.0,0.00021095,2]
[388758031,1759349462077,-500.0,0.00021095,2]
[388758032,1759349462095,-749.78,0.00021095,2]
[388758033,1759349462109,-500.0,0.00021095,2]
[388758034,1759349462126,-500.0,0.00021095,2]
[388758035,1759349462146,-500.0,0.00021095,2]
[388758036,1759349462163,-500.0,0.00021095,2]
[388758037,1759349462179,-500.0,0.00021095,2]
[388758038,1759349462197,-1097.5,0.00021095,2]
[388758039,1759349462211,-758.92,0.00021095,2]
[388758040,1759349462229,-956.95,0.00021095,2]
[388758041,1759349462247,-2130.73,0.00021095,2]
[388758042,1759349462266,-540.78,0.00021095,2]
[388758043,1759349462279,-1279.97,0.00021095,2]
[388758044,1759349462296,-500.0,0.00021095,2]
[388758045,1759349462311,-500.0,0.00021095,2]
[388758046,1759349462327,-913.19,0.00021095,2]
[388758047,1759349462340,-2174.11,0.00021095,2]
[388758048,1759349462355,-4000.0,0.00021111,4]
[388758049,1759349462369,-360.0,0.00021122,2]
[388758050,1759349462383,-200.0117218,0.0002125,2]
[388758051,1759349462397,-200.01019671,0.0002125,2]
[388758052,1759349462411,-500.0,0.0002125,2]
[388758053,1759349462425,-501.30909708,0.0002125,2]
[388758054,1759349462440,-197.4,0.0002125,2]
[388758055,1759349462454,-176.23590451,0.0002125,2]
[388758056,1759349462468,-500.0,0.00021257,2]
[388758057,1759349462483,-500.0,0.00021257,2]
[388758058,1759349462497,-341.26036651,0.00021257,2]
[388758059,1759349462512,-500.0,0.00021257,2]
[388758060,1759349462527,-500.0,0.00021257,2]
[388758061,1759349462543,-500.0,0.00021257,2]
[388758062,1759349462558,-500.0,0.00021257,2]
[388758063,1759349462572,-200.0117218,0.00021275,2]
[388758064,1759349462587,-471.20805777,0.00021275,2]
[388758065,1759349462602,-553.47499876,0.00021275,2]
[388758066,1759349462617,-500.0,0.00021275,2]
[388758067,1759349462634,-500.0,0.00021275,2]
[388758068,1759349462649,-200.01172182,0.00021275,2]
[388758069,1759349462664,-150.40881481,0.00021275,2]
[388758070,1759349462677,-500.0,0.00021275,2]
[388758071,1759349462691,-500.0,0.00021275,2]
[388758072,1759349462705,-487.30246011,0.00021275,2]
[388758073,1759349462721,-500.0,0.00021275,2]
[388758074,1759349462734,-593.0,0.00021275,2]
[388758075,1759349462748,-1435.33123807,0.00021276,2]
[388758076,1759349462764,-150.0,0.000213,2]
[388758077,1759349462778,-593.0,0.00021305,2]
[388758078,1759349462793,-593.0,0.00021311,2]
[388758079,1759349462813,-593.0,0.0002136,2]
[388758080,1759349462827,-282.94653091,0.00021364,2]
[388758081,1759349462843,-2500.0,0.00021364,2]
[388758082,1759349462857,-500.0,0.00021364,2]
[388758083,1759349462872,-2510.84702351,0.00021364,2]
[388758084,1759349462887,-2500.0,0.00021364,2]
[388758085,1759349462901,-2500.0,0.00021364,2]
[388758086,1759349462915,-183.53,0.00021369,2]
[388758087,1759349462928,-500.0,0.00021369,2]
[388758088,1759349462942,-734.36,0.00021369,2]
[388758089,1759349462957,-500.0,0.00021369,2]
[388758090,1759349462968,-630.55,0.00021369,2]
[388758091,1759349462978,-500.0,0.00021369,2]
[388758092,1759349463116,-500.0,0.00021369,2]
[388758093,1759349463141,-500.0,0.00021369,2]
[388758094,1759349463152,-500.0,0.00021369,2]
[388758095,1759349463163,-500.0,0.00021369,2]
[388758096,1759349463173,-500.0,0.00021369,2]
[388758097,1759349463183,-500.0,0.00021369,2]
[388758098,1759349463192,-500.0,0.00021369,2]
[388758099,1759349463202,-500.0,0.00021369,2]
[388758100,1759349463211,-400.0,0.00021369,2]
[388758101,1759349463221,-500.0,0.00021369,2]
[388758102,1759349463230,-500.0,0.00021369,2]
[388758103,1759349463239,-500.0,0.00021369,2]
[388758104,1759349463248,-640.52,0.00021369,2]
[388758105,1759349463258,-500.0,0.00021369,2]
[388758106,1759349463267,-500.0,0.00021369,2]
[388758107,1759349463277,-500.0,0.00021369,2]
[388758108,1759349463287,-716.33,0.00021369,2]
[388758109,1759349463296,-837.42,0.00021369,2]
[388758110,1759349463306,-380.0,0.00021369,2]
[388758111,1759349463315,-500.0,0.00021369,2]
[388758112,1759349463324,-500.0,0.00021369,2]
[388758113,1759349463334,-500.0,0.00021369,2]
[388758114,1759349463343,-500.0,0.00021369,2]
[388758115,1759349463353,-500.0,0.00021369,2]
[388758116,1759349463363,-354.54,0.00021369,2]
[388758117,1759349463373,-500.0,0.00021369,2]
[388758118,1759349463382,-500.0,0.00021369,2]
[388758119,1759349463391,-500.0,0.00021369,2]
[388758120,1759349463401,-500.0,0.00021369,2]
[388758121,1759349463410,-764.98,0.00021369,2]
[388758122,1759349463420,-500.0,0.00021369,2]
[388758123,1759349463429,-500.0,0.00021369,2]
[388758124,1759349463439,-500.0,0.00021369,2]
[388758125,1759349463448,-500.0,0.00021369,2]
[388758126,1759349463457,-500.0,0.00021369,2]
[388758127,1759349463466,-500.0,0.00021369,2]
[388758128,1759349463475,-500.0,0.00021369,2]
[388758129,1759349463484,-500.0,0.00021369,2]
[388758130,1759349463494,-505.27,0.00021369,2]
[388758131,1759349463503,-500.0,0.00021369,2]
[388758132,1759349463512,-500.0,0.00021369,2]
[388758133,1759349463521,-500.0,0.00021369,2]
[388758134,1759349463531,-500.0,0.00021369,2]
[388758135,1759349463540,-500.0,0.00021369,2]
[388758136,1759349463549,-1549.08,0.00021369,2]
[388758137,1759349463560,-983.42,0.00021369,2]
[388758138,1759349463569,-500.0,0.00021369,2]
[388758139,1759349463579,-500.0,0.00021369,2]
[388758140,1759349463589,-500.0,0.00021369,2]
[388758141,1759349463598,-500.0,0.00021369,2]
[388758142,1759349463607,-500.0,0.00021369,2]
[388758143,1759349463617,-500.0,0.00021369,2]
[388758144,1759349463627,-1141.6,0.00021369,2]
[388758145,1759349463636,-500.0,0.00021369,2]
[388758146,1759349463645,-528.75,0.00021369,2]
[388758147,1759349463654,-500.0,0.00021369,2]
[388758148,1759349463663,-500.0,0.00021369,2]
[388758149,1759349463677,-500.0,0.00021369,2]
[388758150,1759349463692,-3901.58,0.00021369,2]
[388758151,1759349463701,-500.0,0.00021369,2]
[388758152,1759349463711,-799.4,0.00021369,2]
[388758153,1759349463722,-956.64,0.00021369,2]
[388758154,1759349463734,-500.0,0.00021369,2]
[388758155,1759349463743,-500.0,0.00021369,2]
[388758156,1759349463752,-500.0,0.00021369,2]
[388758157,1759349463762,-5454.05,0.00021369,2]
[388758158,1759349463771,-500.0,0.00021369,2]
[388758159,1759349463780,-500.0,0.00021369,2]
[388758160,1759349463790,-500.0,0.00021369,2]
[388758161,1759349463799,-500.0,0.00021369,2]
[388758162,1759349463808,-500.0,0.00021369,2]
[388758163,1759349463818,-500.0,0.00021369,2]
[388758164,1759349463828,-500.0,0.00021369,2]
[388758165,1759349463837,-500.0,0.00021369,2]
[388758166,1759349463847,-529.92,0.00021369,2]
[388758167,1759349463857,-893.64,0.00021369,2]
[388758168,1759349463866,-500.0,0.00021369,2]
[388758169,1759349463876,-500.0,0.00021369,2]
[388758170,1759349463885,-500.0,0.00021369,2]
[388758171,1759349463895,-500.0,0.00021369,2]
[388758172,1759349463904,-500.0,0.00021369,2]
[388758173,1759349463914,-500.0,0.00021369,2]
[388758174,1759349463923,-523.64,0.00021369,2]
[388758175,1759349463932,-500.0,0.00021369,2]
[388758176,1759349463941,-500.0,0.00021369,2]
[388758177,1759349463950,-500.0,0.00021369,2]
[388758178,1759349463959,-500.0,0.00021369,2]
[388758179,1759349463969,-500.0,0.00021369,2]
[388758180,1759349463978,-1738.76,0.00021369,2]
[388758181,1759349463987,-1224.23,0.00021369,2]
[388758182,1759349463997,-452.51,0.00021369,2]
[388758183,1759349464006,-500.0,0.00021369,2]
[388758184,1759349464015,-500.0,0.00021369,2]
[388758185,1759349464024,-648.84,0.00021369,2]
[388758186,1759349464033,-500.0,0.00021369,2]
[388758187,1759349464043,-500.0,0.00021369,2]
[388758188,1759349464052,-500.0,0.00021369,2]
[388758189,1759349464061,-2216.26,0.00021369,2]
[388758190,1759349464070,-500.0,0.00021369,2]
[388758191,1759349464080,-671.6,0.00021369,2]
[388758192,1759349464090,-847.38,0.00021369,2]
[388758193,1759349464099,-500.0,0.00021369,2]
[388758194,1759349464108,-500.0,0.00021369,2]
[388758195,1759349464117,-580.17,0.00021369,2]
[388758196,1759349464126,-612.53,0.00021369,2]
[388758197,1759349464135,-500.0,0.00021369,2]
[388758198,1759349464145,-669.61,0.00021369,2]
[388758199,1759349464154,-500.0,0.00021369,2]
[388758200,1759349464163,-500.0,0.00021369,2]
[388758201,1759349464173,-500.0,0.00021369,2]
[388758202,1759349464182,-500.0,0.00021369,2]
[388758203,1759349464191,-779.18,0.00021369,2]
[388758204,1759349464200,-1045.3,0.00021369,2]
[388758205,1759349464209,-500.0,0.00021369,2]
[388758206,1759349464218,-500.0,0.00021369,2]
[388758207,1759349464227,-500.0,0.00021369,2]
[388758208,1759349464237,-500.0,0.00021369,2]
[388758209,1759349464246,-500.0,0.00021369,2]
[388758210,1759349464255,-500.0,0.00021369,2]
[388758211,1759349464264,-749.78,0.00021369,2]
[388758212,1759349464274,-500.0,0.00021369,2]
[388758213,1759349464284,-500.0,0.00021369,2]
[388758214,1759349464293,-500.0,0.00021369,2]
[388758215,1759349464303,-500.0,0.00021369,2]
[388758216,1759349464312,-500.0,0.00021369,2]
[388758217,1759349464321,-1097.5,0.00021369,2]
[388758218,1759349464330,-758.92,0.00021369,2]
[388758219,1759349464339,-956.95,0.00021369,2]
[388758220,1759349464349,-2130.73,0.00021369,2]
[388758221,1759349464358,-1279.97,0.00021369,2]
[388758222,1759349464368,-500.0,0.00021369,2]
[388758223,1759349464377,-500.0,0.00021369,2]
[388758224,1759349464387,-913.19,0.00021369,2]
[388758225,1759349464396,-2174.11,0.00021369,2]
[388758226,1759349464405,-593.0,0.00021382,2]
[388758227,1759349464415,-500.0,0.00021416,2]
[388758228,1759349464424,-2000.0,0.00021416,2]
[388758229,1759349464434,-760.01687714,0.00021416,2]
[388758230,1759349464443,-2000.0,0.00021416,2]
[388758231,1759349464452,-2000.0,0.00021416,2]
[388758232,1759349464462,-593.0,0.00021454,2]
[388758233,1759349464471,-720.0,0.00021517,20]
[388758234,1759349464480,-1435.33123807,0.00021522,2]
[388758235,1759349464489,-593.0,0.00021534,2]
[388758236,1759349464498,-593.0,0.00021552,2]
[388758237,1759349464507,-2000.0,0.00021616,2]
[388758238,1759349464515,-2000.0,0.00021616,2]
[388758239,1759349464524,-462.46090771,0.00021643,2]
[388758240,1759349464534,-734.36,0.00021643,2]
[388758241,1759349464543,-553.36,0.00021643,2]
[388758242,1759349464554,-500.0,0.00021643,2]
[388758243,1759349464563,-500.0,0.00021643,2]
[388758244,1759349464573,-500.0,0.00021643,2]
[388758245,1759349464582,-500.0,0.00021643,2]
[388758246,1759349464591,-500.0,0.00021643,2]
[388758247,1759349464600,-500.0,0.00021643,2]
[388758248,1759349464611,-500.0,0.00021643,2]
[388758249,1759349464620,-614.45,0.00021643,2]
[388758250,1759349464630,-500.0,0.00021643,2]
[388758251,1759349464639,-500.0,0.00021643,2]
[388758252,1759349464649,-500.0,0.00021643,2]
[388758253,1759349464659,-500.0,0.00021643,2]
[388758254,1759349464668,-500.0,0.00021643,2]
[388758255,1759349464677,-500.0,0.00021643,2]
[388758256,1759349464686,-231.34,0.00021643,2]
[388758257,1759349464696,-716.33,0.00021643,2]
[388758258,1759349464706,-837.42,0.00021643,2]
[388758259,1759349464715,-500.0,0.00021643,2]
[388758260,1759349464729,-500.0,0.00021643,2]
[388758261,1759349464738,-500.0,0.00021643,2]
[388758262,1759349464747,-500.0,0.00021643,2]
[388758263,1759349464756,-500.0,0.00021643,2]
[388758264,1759349464766,-500.0,0.00021643,2]
[388758265,1759349464775,-469.10561006,0.00021643,2]
[388758266,1759349464785,-500.0,0.00021643,2]
[388758267,1759349464795,-500.0,0.00021643,2]
[388758268,1759349464804,-764.98,0.00021643,2]
[388758269,1759349464814,-578.95,0.00021643,2]
[388758270,1759349464824,-257.47,0.00021643,2]
[388758271,1759349464833,-500.0,0.00021643,2]
[388758272,1759349464843,-500.0,0.00021643,2]
[388758273,1759349464852,-486.0,0.00021643,2]
[388758274,1759349464862,-500.0,0.00021643,2]
[388758275,1759349464871,-500.0,0.00021643,2]
[388758276,1759349464880,-535.25,0.00021643,2]
[388758277,1759349464890,-500.0,0.00021643,2]
[388758278,1759349464899,-500.0,0.00021643,2]
[388758279,1759349464908,-500.0,0.00021643,2]
[388758280,1759349464918,-500.0,0.00021643,2]
[388758281,1759349464927,-500.0,0.00021643,2]
[388758282,1759349464936,-1549.08,0.00021643,2]
[388758283,1759349464945,-983.42,0.00021643,2]
[388758284,1759349464955,-500.0,0.00021643,2]
[388758285,1759349464964,-500.0,0.00021643,2]
[388758286,1759349464973,-500.0,0.00021643,2]
[388758287,1759349464982,-500.0,0.00021643,2]
[388758288,1759349464991,-500.0,0.00021643,2]
[388758289,1759349465001,-266.07,0.00021643,2]
[388758290,1759349465010,-1141.6,0.00021643,2]
[388758291,1759349465019,-503.32431461,0.00021643,2]
[388758292,1759349465116,-528.75,0.00021643,2]
[388758293,1759349465127,-500.0,0.00021643,2]
[388758294,1759349465137,-500.0,0.00021643,2]
[388758295,1759349465146,-500.0,0.00021643,2]
[388758296,1759349465156,-3901.58,0.00021643,2]
[388758297,1759349465165,-500.0,0.00021643,2]
[388758298,1759349465175,-799.4,0.00021643,2]
[388758299,1759349465185,-956.64,0.00021643,2]
[388758300,1759349465194,-500.0,0.00021643,2]
[388758301,1759349465204,-500.0,0.00021643,2]
[388758302,1759349465213,-500.0,0.00021643,2]
[388758303,1759349465223,-5454.05,0.00021643,2]
[388758304,1759349465231,-500.0,0.00021643,2]
[388758305,1759349465242,-500.0,0.00021643,2]
[388758306,1759349465251,-500.0,0.00021643,2]
[388758307,1759349465262,-500.0,0.00021643,2]
[388758308,1759349465271,-500.0,0.00021643,2]